lending/lending_fUSD_20251116
["ID","MTS","AMOUNT","RATE_DAILY","PERIOD"]
[394160881,1763337039435,-500.0,0.00017973,2]
[394160883,1763337039446,-500.0,0.00017973,2]
[394160885,1763337039456,-500.0,0.00017973,2]
[394160886,1763337039465,-500.0,0.00017973,2]
[394160888,1763337039475,-505.48834918,0.00017973,2]
[394160890,1763337039484,-337.06854993,0.00017973,2]
[394160893,1763337039496,-500.0,0.00017973,2]
[394160895,1763337039506,-500.0,0.00017973,2]
[394160897,1763337039515,-500.0,0.00017973,2]
[394160899,1763337039524,-553.62035377,0.00017973,2]
[394160901,1763337039534,-486.89386542,0.00017973,2]
[394160903,1763337039543,-500.0,0.00017973,2]
[394160905,1763337039552,-500.0,0.00017973,2]
[394160907,1763337039561,-500.0,0.00017973,2]
[394160909,1763337039571,-500.0,0.00017973,2]
[394160911,1763337039581,-216.87184607,0.00017973,2]
[394160913,1763337039591,-172.40826591,0.00017973,2]
[394160916,1763337039600,-500.0,0.00017973,2]
[394160920,1763337039610,-502.02235994,0.00017973,2]
[394160923,1763337039620,-500.0,0.00017973,2]
[394160925,1763337039631,-500.0,0.00017973,2]
[394160927,1763337039641,-500.0,0.00017973,2]
[394160929,1763337039652,-500.0,0.00017973,2]
[394160931,1763337039662,-449.97837369,0.00017973,2]
[394160933,1763337039672,-500.77100973,0.00017973,2]
[394160935,1763337039682,-500.0,0.00017973,2]
[394160937,1763337039695,-371.93258312,0.00017973,2]
[394160939,1763337039705,-500.0,0.00017973,2]
[394160940,1763337039715,-500.0,0.00017973,2]
[394160942,1763337039725,-846.21723648,0.0001799,2]
[394160944,1763337039735,-846.21723648,0.0001799,2]
[394160946,1763337039745,-1111.94,0.00017995,2]
[394160948,1763337039754,-46138.9616163,0.00017999,2]
[394160950,1763337039764,-3167.2874509,0.00017999,2]
[394160952,1763337039774,-500.0,0.00017999,2]
[394160955,1763337039784,-1019.5405,0.00017999,2]
[394160957,1763337039794,-12503.4241881,0.00017999,2]
[394160958,1763337039803,-500.0,0.00017999,2]
[394160960,1763337039812,-472.27503322,0.00017999,2]
[394160962,1763337039822,-150.0,0.00017999,2]
[394160964,1763337039832,-526.98555628,0.00017999,2]
[394160966,1763337039841,-164.310505,0.00017999,2]
[394160968,1763337039851,-150.0,0.00017999,2]
[394160970,1763337039860,-150.0,0.00017999,2]
[394160972,1763337039870,-150.0,0.00017999,2]
[394160974,1763337039880,-150.0,0.00017999,2]
[394160976,1763337039890,-150.0,0.00017999,2]
[394160978,1763337039899,-150.0,0.00017999,2]
[394160980,1763337039908,-207.60745776,0.00017999,2]
[394160982,1763337039918,-2309641.76573174,0.00018,2]
[394160986,1763337039943,-385.96209892,0.00018,2]
[394160988,1763337039958,-2179.88125902,0.00018,2]
[394160990,1763337039969,-1289.09685256,0.00018,2]
[394160993,1763337039981,-1050324.08251547,0.00018,2]
[394160995,1763337039992,-151.0,0.00018,2]
[394160997,1763337040002,-300.0,0.00018021,2]
[394160999,1763337040011,-250.0,0.00018021,2]
[394161001,1763337040022,-195.0,0.00018021,2]
[394161003,1763337040032,-257.61787631,0.00018021,2]
[394161005,1763337040041,-300.0,0.00018021,2]
[394161007,1763337040051,-193.0,0.00018021,2]
[394161009,1763337040060,-300.0,0.00018056,2]
[394161011,1763337040070,-1000.0,0.00018082,2]
[394161013,1763337040080,-166.66,0.00018107,2]
[394161015,1763337040089,-420.0,0.00018244,2]
[394161017,1763337040098,-420.0,0.00018244,2]
[394161019,1763337040107,-150.0,0.00018259,2]
[394161021,1763337040117,-264.28427982,0.00018259,2]
[394161023,1763337040127,-150.0,0.00018259,2]
[394161025,1763337040136,-253.76838782,0.00018259,2]
[394161027,1763337040145,-150.0,0.00018259,2]
[394161029,1763337040155,-500.0,0.00018259,2]
[394161031,1763337040164,-150.0,0.00018259,2]
[394161033,1763337040174,-150.0,0.00018259,2]
[394161035,1763337040183,-500.0,0.00018259,2]
[394161037,1763337040193,-150.0,0.00018259,2]
[394161039,1763337040202,-150.0,0.00018259,2]
[394161041,1763337040212,-500.0,0.00018259,2]
[394161043,1763337040222,-500.0,0.00018259,2]
[394161045,1763337040231,-200.0,0.00018259,2]
[394161047,1763337040240,-150.0,0.00018259,2]
[394161049,1763337040250,-150.0,0.00018259,2]
[394161051,1763337040259,-500.0,0.00018259,2]
[394161053,1763337040269,-1111.94,0.00018269,2]
[394161055,1763337040279,-1680.0,0.00018306,2]
[394161057,1763337040290,-150.0,0.00018314,2]
[394161059,1763337040299,-500.0,0.00018314,2]
[394161061,1763337040308,-242.40019802,0.00018314,2]
[394161063,1763337040318,-500.0,0.00018314,2]
[394161065,1763337040327,-500.0,0.00018314,2]
[394161067,1763337040336,-500.0,0.00018314,2]
[394161069,1763337040345,-150.0,0.00018314,2]
[394161071,1763337040356,-500.0,0.00018314,2]
[394161073,1763337040366,-1802.80487128,0.00018316,2]
[394161075,1763337040375,-150.0,0.00018369,2]
[394161077,1763337040385,-150.0,0.00018369,2]
[394161079,1763337040394,-500.0,0.00018369,2]
[394161081,1763337040403,-500.0,0.00018369,2]
[394161083,1763337040412,-200.0,0.00018369,2]
[394161085,1763337040422,-500.0,0.00018369,2]
[394161086,1763337040432,-200.0,0.00018423,2]
[394161087,1763337040442,-500.0,0.00018423,2]
[394161088,1763337040451,-600.0,0.00018423,2]
[394161090,1763337040460,-500.0,0.00018423,2]
[394161092,1763337040470,-438.0,0.00018438,2]
[394161093,1763337040479,-500.0,0.00018478,2]
[394161094,1763337040489,-500.0,0.00018478,2]
[394161095,1763337040498,-398.51453937,0.00018521,2]
[394161096,1763337040507,-564.7907418,0.00018521,2]
[394161097,1763337040516,-500.0,0.00018521,2]
[394161098,1763337040527,-503.66666773,0.00018521,2]
[394161099,1763337040664,-1000.0,0.00018521,2]
[394161100,1763337040674,-351.16553114,0.00018521,2]
[394161101,1763337040684,-500.0,0.00018521,2]
[394161102,1763337040693,-1000.0,0.00018521,2]
[394161103,1763337040703,-1000.0,0.00018521,2]
[394161104,1763337040713,-500.0,0.00018521,2]
[394161105,1763337040723,-195.09,0.00018528,2]
[394161106,1763337040732,-500.0,0.00018533,2]
[394161107,1763337040741,-500.0,0.00018533,2]
[394161108,1763337040751,-1111.94,0.00018543,2]
[394161109,1763337040761,-447.56560222,0.00018588,2]
[394161110,1763337040770,-500.0,0.00018588,2]
[394161111,1763337040780,-500.0,0.00018643,2]
[394161112,1763337040790,-365.38816279,0.00018697,2]
[394161113,1763337040799,-4224.12,0.00018705,2]
[394161114,1763337040809,-1000.0,0.0001876,2]
[394161115,1763337040818,-1111.94,0.00018817,2]
[394161116,1763337040828,-527.83353,0.0001882,2]
[394161117,1763337040837,-500.0,0.00018904,2]
[394161118,1763337040846,-1000.0,0.00018944,2]
[394161119,1763337040856,-62620.26309221,0.0001899,2]
[394161120,1763337040866,-863.20999898,0.00019,2]
[394161121,1763337040875,-70428.13262295,0.00019,2]
[394161122,1763337040884,-325.53903507,0.00019,2]
[394161123,1763337040894,-500.0,0.00019014,2]
[394161124,1763337040904,-1499.25145718,0.00019068,2]
[394161125,1763337040914,-857.95831871,0.00019068,2]
[394161126,1763337040924,-241.85895381,0.00019068,2]
[394161127,1763337040935,-468.68,0.00019087,2]
[394161128,1763337040945,-1111.94,0.00019091,2]
[394161129,1763337040954,-999.0,0.0001931,3]
[394161130,1763337040964,-1111.94,0.00019365,2]
[394161131,1763337040973,-438.08910651,0.00019373,2]
[394161132,1763337040983,-1030.44235239,0.000194,14]
[394161133,1763337040992,-474.79,0.000194,2]
[394161134,1763337041001,-300.0,0.00019426,2]
[394161135,1763337041011,-1000.0,0.00019438,2]
[394161136,1763337041020,-1111.94,0.00019639,2]
[394161137,1763337041030,-527.83353,0.0001982,2]
[394161138,1763337041039,-1111.95427993,0.00019913,2]
[394161139,1763337041049,-587.0,0.00019932,2]
[394161140,1763337041059,-486.0,0.00019932,2]
[394161141,1763337041069,-17409.95855364,0.0002,14]
[394161142,1763337041081,-110408.1,0.00020057,2]
[394161143,1763337041091,-151.0,0.00020057,2]
[394161144,1763337041101,-151.0,0.00020057,2]
[394161145,1763337041112,-1208.545136,0.00020057,2]
[394161146,1763337041121,-1208.545136,0.00020057,2]
[394161147,1763337041131,-1208.545136,0.00020057,2]
[394161148,1763337041140,-1208.545136,0.00020057,2]
[394161149,1763337041150,-151.0,0.00020057,2]
[394161150,1763337041160,-301.624884,0.00020057,2]
[394161151,1763337041169,-151.0,0.00020057,2]
[394161152,1763337041178,-151.0,0.00020057,2]
[394161153,1763337041189,-152.931965,0.00020057,2]
[394161154,1763337041199,-11789.0,0.00020066,2]
[394161155,1763337041208,-447.0,0.00020101,2]
[394161156,1763337041218,-1000.0,0.00020116,2]
[394161157,1763337041228,-368.18431188,0.00020159,2]
[394161158,1763337041238,-493.2,0.00020187,2]
[394161159,1763337041248,-10294.9938945,0.00020288,2]
[394161160,1763337041258,-2789.8910415,0.00020288,2]
[394161161,1763337041268,-467.11943054,0.00020306,2]
[394161162,1763337041277,-706.7173561,0.00020318,2]
[394161163,1763337041291,-500.0,0.00020466,2]
[394161164,1763337041300,-189.64,0.00020548,2]
[394161165,1763337041310,-164.327771,0.00020548,2]
[394161166,1763337041320,-164.327771,0.00020548,2]
[394161167,1763337041329,-164.327771,0.00020548,2]
[394161168,1763337041343,-164.327771,0.00020548,2]
[394161169,1763337041352,-277.35679052,0.00020731,2]
[394161170,1763337041364,-500.0,0.00020731,2]
[394161171,1763337041374,-500.0,0.00020731,2]
[394161172,1763337041384,-500.0,0.00020731,2]
[394161173,1763337041393,-500.0,0.00020731,2]
[394161174,1763337041403,-500.0,0.00020731,2]
[394161175,1763337041412,-500.0,0.00020731,2]
[394161176,1763337041421,-500.0,0.00020731,2]
[394161177,1763337041431,-500.0,0.00020731,2]
[394161178,1763337041445,-500.0,0.00020731,2]
[394161179,1763337041466,-151.0,0.00020731,2]
[394161180,1763337041481,-500.0,0.00020731,2]
[394161181,1763337041502,-500.0,0.00020731,2]
[394161182,1763337041520,-500.0,0.00020731,2]
[394161183,1763337041535,-500.0,0.00020731,2]
[394161184,1763337041554,-500.0,0.00020731,2]
[394161185,1763337041573,-500.0,0.00020731,2]
[394161186,1763337041591,-500.0,0.00020731,2]
[394161187,1763337041610,-500.0,0.00020731,2]
[394161188,1763337041628,-500.0,0.00020731,2]
[394161189,1763337041648,-322.6107,0.00020731,2]
[394161190,1763337041664,-500.0,0.00020731,2]
[394161191,1763337041677,-500.0,0.00020731,2]
[394161192,1763337041698,-500.0,0.00020731,2]
[394161193,1763337041711,-721.12765535,0.00020731,2]
[394161194,1763337041731,-500.0,0.00020731,2]
[394161195,1763337041745,-500.0,0.00020731,2]
[394161196,1763337041760,-500.0,0.00020731,2]
[394161197,1763337041775,-2000.0,0.00020731,2]
[394161198,1763337041792,-500.0,0.00020731,2]
[394161199,1763337041807,-500.0,0.00020731,2]
[394161200,1763337041822,-500.0,0.00020731,2]
[394161201,1763337041838,-2000.0,0.00020731,2]
[394161202,1763337041852,-500.0,0.00020731,2]
[394161203,1763337041867,-500.0,0.00020731,2]
[394161204,1763337041882,-1312.87401857,0.00020731,2]
[394161205,1763337041898,-500.0,0.00020731,2]
[394161206,1763337041914,-500.0,0.00020731,2]
[394161207,1763337041930,-500.0,0.00020731,2]
[394161208,1763337041946,-500.0,0.00020731,2]
[394161209,1763337041961,-515.27961803,0.00020731,2]
[394161210,1763337041975,-471.5812041,0.00020731,2]
[394161211,1763337041990,-9552.16786547,0.00020731,2]
[394161212,1763337042004,-250.0,0.00020731,2]
[394161213,1763337042018,-250.0,0.00020731,2]
[394161214,1763337042032,-250.0,0.00020731,2]
[394161215,1763337042046,-250.0,0.00020731,2]
[394161216,1763337042061,-250.0,0.00020731,2]
[394161217,1763337042076,-250.0,0.00020731,2]
[394161218,1763337042090,-250.0,0.00020731,2]
[394161219,1763337042104,-250.0,0.00020731,2]
[394161220,1763337042119,-250.0,0.00020731,2]
[394161221,1763337042134,-250.0,0.00020731,2]
[394161222,1763337042149,-250.0,0.00020731,2]
[394161223,1763337042163,-250.0,0.00020731,2]
[394161224,1763337042178,-250.0,0.00020731,2]
[394161225,1763337042194,-250.0,0.00020731,2]
[394161226,1763337042209,-250.0,0.00020731,2]
[394161227,1763337042224,-250.0,0.00020731,2]
[394161228,1763337042238,-250.0,0.00020731,2]
[394161229,1763337042254,-250.0,0.00020731,2]
[394161230,1763337042271,-250.0,0.00020731,2]
[394161231,1763337042288,-250.0,0.00020731,2]
[394161232,1763337042303,-250.0,0.00020731,2]
[394161233,1763337042318,-250.0,0.00020731,2]
[394161234,1763337042333,-9905.5980765,0.00020786,2]
[394161235,1763337042349,-1000.0,0.00020795,2]
[394161236,1763337042363,-2297.1236364,0.00020799,2]
[394161237,1763337042379,-622.5088348,0.00020799,2]
[394161238,1763337042394,-527.83353,0.0002082,2]
[394161239,1763337042408,-150.0,0.00020825,2]
[394161240,1763337042424,-157.6899568,0.00020836,2]
[394161241,1763337042441,-855.15458257,0.00020841,2]
[394161242,1763337042456,-1000.0,0.00021049,2]
[394161243,1763337042471,-151.0,0.00021107,2]
[394161245,1763337042486,-151.0,0.00021107,2]
[394161246,1763337042500,-151.0,0.00021107,2]
[394161247,1763337042515,-151.0,0.00021107,2]
[394161249,1763337042529,-450.994897,0.00021107,2]
[394161250,1763337042546,-450.994897,0.00021107,2]
[394161251,1763337042559,-450.994897,0.00021107,2]
[394161252,1763337042574,-450.994897,0.00021107,2]
[394161253,1763337042588,-151.0,0.00021107,2]
[394161254,1763337042602,-151.0,0.00021107,2]
[394161255,1763337042617,-151.0,0.00021107,2]
[394161256,1763337042631,-151.0,0.00021107,2]
[394161257,1763337042645,-151.0,0.00021107,2]
[394161258,1763337042660,-151.0,0.00021107,2]
[394161259,1763337042673,-151.0,0.00021107,2]
[394161260,1763337042690,-151.0,0.00021107,2]
[394161261,1763337042705,-151.0,0.00021107,2]
[394161262,1763337042715,-151.0,0.00021107,2]
[394161263,1763337042726,-151.0,0.00021107,2]
[394161282,1763337042736,-151.0,0.00021107,2]
[394161283,1763337042971,-151.0,0.00021161,2]
[394161284,1763337042980,-151.0,0.00021161,2]
[394161285,1763337042990,-2000.0,0.000212,2]
[394161286,1763337042999,-151.0,0.00021279,2]
[394161287,1763337043009,-6324.66,0.0002137,2]
[394161288,1763337043018,-354.91063775,0.00021373,2]
[394161289,1763337043027,-474.79,0.00021556,2]
[394161290,1763337043036,-479.06402154,0.00021608,2]
[394161291,1763337043045,-733.0,0.00021777,2]
[394161292,1763337043055,-1815.62889481,0.00021807,2]
[394161293,1763337043064,-527.83353,0.0002182,2]
[394161294,1763337043074,-151.0,0.00021827,2]
[394161295,1763337043083,-5000.0,0.00021918,2]
[394161296,1763337043093,-151.0,0.00021918,2]
[394161297,1763337043102,-8000.0,0.00022,5]
[394161298,1763337043112,-6652.1,0.00022,7]
[394161299,1763337043122,-287.61899177,0.000221,2]
[394161300,1763337043132,-334.5472959,0.000221,2]
[394161301,1763337043142,-238.27133015,0.0002211,2]
[394161302,1763337043151,-438.08910651,0.00022119,2]
[394161303,1763337043161,-1000.0,0.000222,2]
[394161304,1763337043171,-151.0,0.00022375,2]
[394161305,1763337043181,-268.45,0.00022531,2]
[394161306,1763337043191,-262.89,0.00022531,2]
[394161307,1763337043201,-500.0,0.00022603,2]
[394161308,1763337043211,-151.0,0.000228,2]
[394161309,1763337043221,-151.0,0.000228,2]
[394161310,1763337043232,-164.327771,0.000228,2]
[394161311,1763337043242,-164.327771,0.000228,2]
[394161312,1763337043251,-164.327771,0.000228,2]
[394161313,1763337043261,-164.327771,0.000228,2]
[394161314,1763337043273,-527.83353,0.0002282,2]
[394161315,1763337043286,-152.860398,0.000229,2]
[394161316,1763337043305,-151.0,0.000229,2]
[394161317,1763337043315,-1208.545136,0.000229,2]
[394161318,1763337043325,-1208.545136,0.000229,2]
[394161319,1763337043335,-1208.545136,0.000229,2]
[394161320,1763337043345,-1208.545136,0.000229,2]
[394161321,1763337043356,-151.0,0.000229,2]
[394161322,1763337043365,-209.2023078,0.00022923,2]
[394161323,1763337043376,-366.79,0.00022996,2]
[394161324,1763337043386,-1000.0,0.00023,14]
[394161325,1763337043395,-163.0,0.00023,7]
[394161326,1763337043405,-151.0,0.00023,2]
[394161327,1763337043415,-151.0,0.00023,2]
[394161328,1763337043424,-151.0,0.00023,2]
[394161329,1763337043433,-268.0,0.00023,2]
[394161330,1763337043445,-151.0,0.00023,2]
[394161331,1763337043454,-151.0,0.00023,2]
[394161332,1763337043464,-1000.0,0.00023153,2]
[394161333,1763337043472,-151.0,0.000232,2]
[394161334,1763337043481,-151.0,0.000232,2]
[394161335,1763337043491,-151.0,0.000232,2]
[394161336,1763337043499,-151.0,0.000232,2]
[394161337,1763337043508,-151.0,0.000232,2]
[394161338,1763337043517,-450.994897,0.000233,7]
[394161339,1763337043526,-450.994897,0.000233,7]
[394161340,1763337043536,-450.994897,0.000233,7]
[394161341,1763337043545,-450.994897,0.000233,7]
[394161342,1763337043554,-298.26089446,0.00023469,2]
[394161343,1763337043564,-346.92554585,0.00023469,2]
[394161345,1763337043574,-747.8093786,0.0002347,2]
[394161346,1763337043583,-474.79,0.00023711,2]
[394161347,1763337043593,-167.20243487,0.0002376,2]
[394161348,1763337043602,-467.11943054,0.00023811,2]
[394161349,1763337043611,-158.42,0.00023873,2]
[394161350,1763337043621,-151.0,0.000239,7]
[394161351,1763337043631,-6652.1,0.000239,7]
[394161352,1763337043640,-151.0,0.000241,7]
[394161353,1763337043650,-163.0,0.00024164,7]
[394161354,1763337043659,-1368.32,0.00024225,30]
[394161355,1763337043668,-162.99,0.00024322,2]
[394161356,1763337043677,-5015.1,0.00024351,2]
[394161357,1763337043687,-1000.0,0.000246,2]
[394161358,1763337043696,-330.46504681,0.00024619,2]
[394161359,1763337043706,-151.0,0.00024658,7]
[394161360,1763337043715,-201.640346,0.00024658,7]
[394161361,1763337043724,-151.0,0.00024658,7]
[394161362,1763337043734,-151.0,0.00024658,7]
[394161363,1763337043743,-151.0,0.00024658,7]
[394161364,1763337043753,-151.0,0.00024658,7]
[394161365,1763337043762,-151.0,0.00024658,7]
[394161366,1763337043771,-151.0,0.00024658,7]
[394161367,1763337043780,-151.0,0.00024658,7]
[394161368,1763337043790,-151.0,0.00024658,7]
[394161369,1763337043800,-151.0,0.00024658,7]
[394161370,1763337043809,-151.0,0.00024658,7]
[394161371,1763337043818,-151.0,0.00024658,7]
[394161372,1763337043828,-151.0,0.00024658,7]
[394161373,1763337043837,-154.2739,0.00024658,7]
[394161374,1763337043847,-151.0,0.00024658,7]
[394161375,1763337043856,-160.745587,0.00024658,7]
[394161376,1763337043866,-151.0,0.00024658,7]
[394161377,1763337043876,-151.0,0.00024658,7]
[394161378,1763337043885,-151.0,0.00024658,7]
[394161379,1763337043895,-151.0,0.00024658,7]
[394161380,1763337043905,-151.0,0.00024658,7]
[394161381,1763337043915,-151.0,0.00024658,7]
[394161382,1763337043924,-157.20993,0.00024658,7]
[394161383,1763337043935,-202.005094,0.00024658,7]
[394161384,1763337043944,-151.0,0.00024658,7]
[394161385,1763337043954,-151.0,0.00024658,7]
[394161386,1763337043964,-151.0,0.00024658,7]
[394161387,1763337043973,-151.0,0.00024658,7]
[394161388,1763337043982,-151.0,0.00024658,7]
[394161389,1763337043990,-151.0,0.00024658,7]
[394161390,1763337044000,-151.0,0.00024658,7]
[394161391,1763337044009,-151.0,0.00024658,7]
[394161392,1763337044018,-151.0,0.00024658,7]
[394161393,1763337044027,-208.909036,0.00024658,7]
[394161394,1763337044036,-151.0,0.00024658,7]
[394161395,1763337044046,-181.524997,0.00024658,7]
[394161396,1763337044055,-151.0,0.00024658,7]
[394161397,1763337044065,-151.0,0.00024658,7]
[394161398,1763337044074,-151.0,0.00024658,7]
[394161399,1763337044084,-153.818967,0.00024658,7]
[394161400,1763337044094,-151.0,0.00024658,7]
[394161401,1763337044104,-151.0,0.00024658,7]
[394161402,1763337044114,-151.0,0.00024658,7]
[394161403,1763337044123,-151.0,0.00024658,7]
[394161404,1763337044133,-151.0,0.00024658,7]
[394161405,1763337044141,-151.0,0.00024658,7]
[394161406,1763337044150,-151.0,0.00024658,7]
[394161407,1763337044160,-151.0,0.00024658,7]
[394161408,1763337044170,-151.0,0.00024658,7]
[394161409,1763337044180,-151.0,0.00024658,7]
[394161410,1763337044191,-244.604031,0.00024658,7]
[394161411,1763337044200,-244.604031,0.00024658,7]
[394161412,1763337044209,-151.0,0.00024658,7]
[394161413,1763337044219,-153.714524,0.00024658,7]
[394161414,1763337044234,-151.0,0.00024658,7]
[394161415,1763337044244,-244.604031,0.00024658,7]
[394161416,1763337044253,-151.0,0.00024658,7]
[394161417,1763337044263,-244.604031,0.00024658,7]
[394161418,1763337044276,-151.0,0.00024658,7]
[394161419,1763337044286,-274.420913,0.00024658,7]
[394161420,1763337044295,-365.1992,0.00024658,7]
[394161421,1763337044305,-365.1992,0.00024658,7]
[394161422,1763337044316,-365.1992,0.00024658,7]
[394161423,1763337044326,-365.1992,0.00024658,7]
[394161424,1763337044336,-151.0,0.00024658,7]
[394161425,1763337044346,-151.0,0.00024658,7]
[394161426,1763337044356,-151.0,0.00024658,7]
[394161427,1763337044366,-151.0,0.00024658,7]
[394161428,1763337044375,-151.0,0.00024658,7]
[394161429,1763337044385,-151.0,0.00024658,7]
[394161430,1763337044395,-174.145706,0.00024658,7]
[394161431,1763337044404,-151.0,0.00024658,7]
[394161432,1763337044414,-151.0,0.00024658,7]
[394161433,1763337044423,-170.456547,0.00024658,7]
[394161434,1763337044432,-281.145595,0.00024658,7]
[394161435,1763337044444,-151.0,0.00024658,7]
[394161436,1763337044455,-151.0,0.00024658,7]
[394161437,1763337044465,-151.0,0.00024658,7]
[394161438,1763337044474,-151.0,0.00024658,7]
[394161439,1763337044484,-151.0,0.00024658,7]
[394161440,1763337044493,-151.0,0.00024658,7]
[394161441,1763337044503,-239.166881,0.00024658,7]
[394161442,1763337044512,-151.0,0.00024658,7]
[394161443,1763337044522,-151.0,0.00024658,7]
[394161444,1763337044532,-151.0,0.00024658,7]
[394161445,1763337044542,-151.0,0.00024658,7]
[394161446,1763337044552,-235.793648,0.00024658,7]
[394161447,1763337044561,-151.0,0.00024658,7]
[394161448,1763337044571,-151.0,0.00024658,7]
[394161449,1763337044580,-151.0,0.00024658,7]
[394161450,1763337044590,-151.0,0.00024658,7]
[394161451,1763337044599,-235.733708,0.00024658,7]
[394161452,1763337044608,-151.0,0.00024658,7]
[394161453,1763337044618,-151.0,0.00024658,7]
[394161454,1763337044628,-151.0,0.00024658,7]
[394161455,1763337044637,-151.0,0.00024658,7]
[394161456,1763337044646,-296.085298,0.00024658,7]
[394161457,1763337044656,-151.0,0.00024658,7]
[394161458,1763337044665,-151.0,0.00024658,7]
[394161459,1763337044675,-151.0,0.00024658,7]
[394161460,1763337044684,-389.071025,0.00024658,7]
[394161461,1763337044693,-151.0,0.00024658,7]
[394161462,1763337044701,-389.071025,0.00024658,7]
[394161463,1763337044709,-151.0,0.00024658,7]
[394161464,1763337044716,-151.0,0.00024658,7]
[394161465,1763337044725,-389.071025,0.00024658,7]
[394161466,1763337044733,-151.0,0.00024658,7]
[394161467,1763337044742,-389.071025,0.00024658,7]
[394161468,1763337044750,-151.0,0.00024658,7]
[394161469,1763337044758,-151.0,0.00024658,7]
[394161470,1763337044767,-151.0,0.00024658,7]
[394161471,1763337044776,-151.0,0.00024658,7]
[394161472,1763337044784,-151.0,0.00024658,7]
[394161473,1763337044793,-182.483269,0.00024658,7]
[394161474,1763337044803,-165.064262,0.00024658,7]
[394161475,1763337044812,-165.064262,0.00024658,7]
[394161476,1763337044821,-165.064262,0.00024658,7]
[394161477,1763337044831,-165.064262,0.00024658,7]
[394161478,1763337044841,-165.064262,0.00024658,7]
[394161479,1763337044850,-165.064262,0.00024658,7]
[394161480,1763337044859,-165.064262,0.00024658,7]
[394161481,1763337044869,-165.064262,0.00024658,7]
[394161482,1763337044878,-151.0,0.00024658,7]
[394161483,1763337044888,-151.0,0.00024658,7]
[394161484,1763337044897,-151.0,0.00024658,7]
[394161485,1763337044908,-151.0,0.00024658,7]
[394161486,1763337044919,-151.0,0.00024658,7]
[394161487,1763337044932,-151.0,0.00024658,7]
[394161488,1763337044942,-151.0,0.00024658,7]
[394161489,1763337044959,-153.108188,0.00024658,7]
[394161490,1763337044969,-151.0,0.00024658,7]
[394161491,1763337044979,-151.0,0.00024658,7]
[394161492,1763337044988,-151.0,0.00024658,7]
[394161493,1763337044999,-151.0,0.00024658,7]
[394161494,1763337045008,-151.0,0.00024658,7]
[394161495,1763337045019,-151.0,0.00024658,7]
[394161496,1763337045029,-151.0,0.00024658,7]
[394161497,1763337045039,-151.0,0.00024658,7]
[394161498,1763337045049,-151.0,0.00024658,7]
[394161499,1763337045058,-151.0,0.00024658,7]
[394161500,1763337045067,-151.0,0.00024658,7]
[394161501,1763337045077,-151.0,0.00024658,7]
[394161502,1763337045086,-151.0,0.00024658,7]
[394161503,1763337045096,-151.0,0.00024658,7]
[394161504,1763337045106,-151.0,0.00024658,7]
[394161505,1763337045117,-151.0,0.00024658,7]
[394161506,1763337045126,-151.0,0.00024658,7]
[394161507,1763337045136,-151.0,0.00024658,7]
[394161508,1763337045146,-151.0,0.00024658,7]